bitfinex/quotes_SOLUSD_20250803
["timestamp","ask_amount","ask_price","bid_price","bid_amount"]
[1754219391044,0.03,162.41,162.4,186.7521026]
[1754219395044,0.03,162.41,162.4,195.9580276]
[1754219395229,0.03,162.41,162.4,195.2980276]
[1754219395426,0.03,162.41,162.4,186.0921026]
[1754219397035,0.03,162.41,162.4,186.7521026]
[1754219401851,0.03,162.41,162.4,186.0921026]
[1754219402221,0.03,162.41,162.4,186.7521026]
[1754219409554,0.03,162.41,162.4,191.7996066]
[1754219409863,0.03,162.41,162.4,186.7521026]
[1754219413753,0.03,162.41,162.4,189.2213146]
[1754219414145,0.03,162.41,162.4,145.5613146]
[1754219414339,0.03,162.41,162.4,186.1121026]
[1754219415155,0.03,162.41,162.4,186.7821026]
[1754219420177,0.03,162.41,162.4,186.1121026]
[1754219420365,0.03,162.41,162.4,186.7821026]
[1754219429161,0.03,162.41,162.4,203.56678657]
[1754219433181,0.03,162.41,162.4,160.54678657]
[1754219433364,0.03,162.41,162.4,203.56678657]
[1754219435367,0.03,162.41,162.4,160.54678657]
[1754219435586,0.03,162.41,162.4,206.03584557]
[1754219438071,5.60427469,162.48,162.4,206.03584557]
[1754219438258,5.20107027,162.51,162.41,43.7]
[1754219438464,5.20107027,162.51,162.42,43.02]
[1754219438860,0.03,162.43,162.42,43.02]
[1754219439172,0.03,162.43,162.42,142.3121026]
[1754219439691,0.03,162.43,162.42,99.2921026]
[1754219439867,0.03,162.43,162.42,142.3121026]
[1754219440986,0.03,162.43,162.42,99.2921026]
[1754219441189,0.03,162.43,162.42,142.3121026]
[1754219441381,0.03,162.43,162.42,99.2921026]
[1754219441588,0.03,162.43,162.42,142.3121026]
[1754219441793,0.03,162.43,162.42,186.7121026]
[1754219441966,0.03,162.43,162.42,143.6921026]
[1754219442169,0.03,162.43,162.42,186.7121026]
[1754219449276,0.03,162.43,162.42,203.49678657]
[1754219450370,4.1581811,162.49,162.48,9.5721026]
[1754219450580,16.71059107,162.54,162.48,9.5721026]
[1754219450581,4.1581811,162.5,162.48,9.5721026]
[1754219450784,5.20107027,162.51,162.49,52.5921026]
[1754219450986,4.21785733,162.5,162.49,52.5921026]
[1754219451317,4.21785733,162.5,162.49,43.02]
[1754219451498,4.21785733,162.5,162.49,52.5921026]
[1754219451795,9.24742431,162.5,162.49,43.02]
[1754219452003,9.24742431,162.5,162.49,52.5921026]
[1754219452186,4.21785733,162.5,162.49,52.5921026]
[1754219452382,0.06,162.5,162.49,52.5921026]
[1754219454281,4.93067113,162.5,162.49,52.5921026]
[1754219455579,4.93067113,162.5,162.49,43.02]
[1754219455780,4.93067113,162.5,162.49,52.5921026]
[1754219456084,4.93067113,162.5,162.49,43.02]
[1754219456295,4.93067113,162.5,162.49,52.5921026]
[1754219458405,4.93067113,162.5,162.49,43.02]
[1754219458720,4.87067113,162.5,162.49,52.5921026]
[1754219459209,4.82664116,162.5,162.49,52.5921026]
[1754219459405,4.21785733,162.51,162.49,52.5921026]
[1754219462280,9.3589276,162.52,162.5,0.68]
[1754219462606,0.03,162.53,162.5,0.68]
[1754219462607,5.23107027,162.53,162.52,9.5721026]
[1754219462827,0.03,162.53,162.51,52.5721026]
[1754219462989,0.03,162.53,162.52,9.5721026]
[1754219463310,4.18321577,162.53,162.52,9.5721026]
[1754219464084,4.18321577,162.53,162.52,10.2521026]
[1754219464289,0.03,162.53,162.52,10.2521026]
[1754219467428,26.03,162.53,162.52,53.2521026]
[1754219467598,30.18321577,162.53,162.52,53.2521026]
[1754219468506,26.03,162.53,162.52,53.2521026]
[1754219469192,0.03,162.53,162.52,53.2521026]
[1754219473098,0.03,162.53,162.52,70.03678657]
[1754219474122,0.03,162.53,162.52,89.18209545]
[1754219474292,0.05,162.62,162.61,9.5721026]
[1754219474494,0.05,162.62,162.61,97.0321026]
[1754219474692,0.05,162.62,162.61,114.52678657]
[1754219475699,0.05,162.62,162.61,114.58678657]
[1754219475999,0.14,162.74,162.71,9.5721026]
[1754219476197,0.14,162.74,162.72,43.14]
[1754219476396,0.14,162.74,162.72,52.7121026]
[1754219476600,26.0,162.73,162.72,52.7121026]
[1754219477009,0.14,162.74,162.64,16.78468397]
[1754219477010,5.21661004,162.76,162.71,9.5721026]
[1754219477327,5.21661004,162.76,162.75,9.5721026]
[1754219477490,5.21661004,162.76,162.75,53.5021026]
[1754219478189,3.77661004,162.76,162.75,10.2821026]
[1754219478397,4.48661004,162.76,162.75,9.5721026]
[1754219478698,4.48661004,162.76,162.75,52.8921026]
[1754219480002,4.48661004,162.76,162.75,43.3]
[1754219480206,4.48661004,162.76,162.75,52.8721026]
[1754219481012,3.77661004,162.76,162.75,52.8721026]
[1754219482899,4.48661004,162.76,162.75,52.8721026]
[1754219485617,3.77661004,162.76,162.75,52.8721026]
[1754219486332,4.48661004,162.76,162.75,52.8721026]
[1754219486529,3.77661004,162.76,162.75,141.9721026]
[1754219487808,3.77661004,162.76,162.75,142.6821026]
[1754219488210,3.77661004,162.76,162.75,141.9721026]
[1754219489310,4.48661004,162.76,162.75,141.9721026]
[1754219489623,3.77661004,162.76,162.75,141.9721026]
[1754219490025,3.77661004,162.76,162.75,53.5821026]
[1754219490338,3.77661004,162.76,162.75,52.8721026]
[1754219490524,3.77661004,162.76,162.75,9.5721026]
[1754219490705,3.77661004,162.76,162.75,52.8321026]
[1754219494135,3.77661004,162.76,162.75,53.5421026]
[1754219496549,3.77661004,162.76,162.75,10.2821026]
[1754219496713,3.77661004,162.76,162.75,53.6021026]
[1754219497836,3.77661004,162.76,162.75,52.8921026]
[1754219498319,3.77661004,162.76,162.75,53.6121026]
[1754219500316,3.77661004,162.76,162.75,70.39678657]
[1754219501218,3.77661004,162.76,162.75,27.07678657]
[1754219501416,3.77661004,162.76,162.75,70.53678657]
[1754219501734,3.77661004,162.76,162.75,53.0321026]
[1754219502358,3.77661004,162.76,162.75,53.7521026]
[1754219504560,3.77661004,162.76,162.75,80.53678657]
[1754219504842,3.77661004,162.76,162.75,70.53678657]
[1754219505045,3.77661004,162.76,162.75,80.53678657]
[1754219507648,3.77661004,162.76,162.75,80.61678657]
[1754219508154,3.77661004,162.76,162.75,70.61678657]
[1754219508324,3.77661004,162.76,162.75,80.61678657]
[1754219509240,3.77661004,162.76,162.75,74.39339657]
[1754219513031,2.15550627,162.76,162.75,74.39339657]
[1754219520660,2.15550627,162.76,162.75,75.00783589]
[1754219520859,2.15550627,162.76,162.75,164.10783589]
[1754219521040,2.15550627,162.76,162.75,163.49339657]
[1754219523161,2.15550627,162.76,162.75,163.55339657]
[1754219524858,2.15550627,162.76,162.75,74.45339657]
[1754219525445,2.15550627,162.76,162.75,30.91339657]
[1754219525666,2.15550627,162.76,162.75,74.31339657]
[1754219526229,2.15550627,162.76,162.75,74.92783589]
[1754219529347,2.86550627,162.76,162.75,73.59339657]
[1754219529540,2.15550627,162.76,162.75,73.59339657]
[1754219530459,2.15550627,162.76,162.75,74.29339657]
[1754219530845,2.15550627,162.76,162.75,74.90783589]
[1754219531368,0.03,162.78,162.76,16.78468397]
[1754219531556,0.03,162.78,162.77,53.3921026]
[1754219532545,0.03,162.78,162.77,54.0921026]
[1754219533744,0.03,162.78,162.77,70.87678657]
[1754219534165,0.03,162.78,162.77,97.49115039]
[1754219534365,0.03,162.78,162.77,107.49115039]
[1754219534571,0.03,162.78,162.77,63.67115039]
[1754219534774,0.03,162.78,162.77,107.55115039]
[1754219534966,0.03,162.78,162.77,97.55115039]
[1754219535165,0.03,162.78,162.77,107.55115039]
[1754219535371,0.03,162.78,162.77,96.85115039]
[1754219535670,0.03,162.78,162.77,97.55115039]
[1754219536048,0.03,162.78,162.77,96.85115039]
[1754219536248,0.03,162.78,162.77,97.55115039]
[1754219537856,0.03,162.78,162.77,53.67115039]
[1754219538057,0.03,162.78,162.77,97.57115039]
[1754219539157,0.03,162.78,162.77,101.69352239]
[1754219540655,0.03,162.78,162.77,100.99352239]
[1754219540857,0.03,162.78,162.77,101.69352239]
[1754219542480,0.03,162.78,162.77,111.69352239]
[1754219542688,0.03,162.78,162.77,101.69352239]
[1754219542983,0.03,162.78,162.77,100.95352239]
[1754219543482,0.03,162.78,162.77,101.65352239]
[1754219545583,0.03,162.78,162.77,111.65352239]
[1754219548272,0.03,162.78,162.77,104.18352239]
[1754219548468,0.71,162.84,162.83,26.35678657]
[1754219548675,0.71,162.84,162.83,70.25678657]
[1754219549477,0.71,162.86,162.85,9.5721026]
[1754219549674,0.71,162.86,162.85,53.4721026]
[1754219551989,0.71,162.86,162.85,97.7721026]
[1754219556303,0.71,162.86,162.85,114.55678657]
[1754219559878,4.13806314,162.95,162.85,114.55678657]
[1754219560075,0.67,162.87,162.86,9.5721026]
[1754219561375,4.13806314,162.97,162.86,9.5721026]
[1754219561582,0.67,162.88,162.87,53.3721026]
[1754219562413,0.67,162.88,162.87,70.15678657]
[1754219562592,0.67,162.88,162.87,53.3721026]
[1754219564711,0.67,162.88,162.87,9.5721026]
[1754219564908,0.67,162.88,162.87,53.3521026]
[1754219565210,4.13216259,162.96,162.87,53.3521026]
[1754219565211,4.13216259,162.96,162.95,9.5721026]
[1754219565506,4.13216259,162.96,162.95,53.3321026]
[1754219565714,0.67,162.96,162.95,53.3321026]
[1754219565892,4.80216259,162.96,162.95,53.3321026]
[1754219567306,0.67,162.96,162.95,53.3321026]
[1754219567491,0.67,162.96,162.95,9.5721026]
[1754219567694,0.67,162.96,162.95,53.3121026]
[1754219568088,4.80077436,162.96,162.95,53.3121026]
[1754219568290,0.67,162.96,162.95,53.3121026]
[1754219569199,0.67,162.96,162.95,9.5721026]
[1754219569390,0.67,162.96,162.95,53.2921026]
[1754219569590,0.67,162.96,162.95,9.5721026]
[1754219569788,0.67,162.96,162.95,53.2921026]
[1754219571215,0.67,162.96,162.95,43.72]
[1754219571414,0.67,162.96,162.95,53.2921026]
[1754219574100,0.67,162.96,162.95,43.72]
[1754219574508,0.67,162.96,162.95,53.2921026]
[1754219575017,0.67,162.96,162.95,43.72]
[1754219575798,0.67,162.96,162.95,53.2921026]
[1754219576618,0.67,162.96,162.95,43.72]
[1754219576819,0.67,162.96,162.95,53.2921026]
[1754219577619,0.67,162.96,162.95,9.5721026]
[1754219577917,26.67,162.96,162.95,43.66]
[1754219578117,30.79971927,162.96,162.95,43.66]
[1754219578696,0.67,162.96,162.95,43.66]
[1754219578891,0.67,162.96,162.95,53.2321026]
[1754219580619,0.67,162.96,162.95,43.66]
[1754219581731,0.67,162.96,162.93,9.5721026]
[1754219581936,0.67,162.96,162.94,43.64]
[1754219582734,0.67,162.96,162.93,9.5721026]
[1754219582909,0.67,162.96,162.94,43.66]
[1754219583430,0.67,162.96,162.93,9.5721026]
[1754219583596,0.67,162.96,162.94,43.66]
[1754219583923,0.67,162.96,162.95,43.66]
[1754219585204,0.67,162.96,162.93,9.5721026]
[1754219585408,0.67,162.96,162.93,10.2821026]
[1754219585722,0.67,162.96,162.94,43.66]
[1754219586108,0.68,162.97,162.94,53.9421026]
[1754219586719,0.68,162.96,162.95,9.5721026]
[1754219587114,4.13199718,162.98,162.95,9.5721026]
[1754219587327,0.68,162.97,162.96,43.66]
[1754219587534,0.68,162.97,162.95,9.5721026]
[1754219587716,0.68,162.97,162.96,43.66]
[1754219588104,26.68,162.97,162.96,43.68]
[1754219588342,30.81199718,162.97,162.96,43.68]
[1754219588625,30.81199718,162.97,162.95,9.5721026]
[1754219588830,26.0,162.97,162.96,43.66]
[1754219589025,4.13841148,162.97,162.96,43.66]
[1754219589207,4.13841148,162.98,162.96,43.66]
[1754219589607,0.68,162.97,162.96,43.66]
[1754219589823,4.13841148,162.98,162.97,9.5721026]
[1754219590022,0.02,163.0,162.99,9.5721026]
[1754219590213,5.20107027,163.04,163.01,9.5721026]
[1754219590413,0.68,163.03,163.01,8.38752329]
[1754219590634,43.46468397,163.03,163.02,43.66]
[1754219590835,26.0,162.99,162.98,8.38752329]
[1754219591000,26.0,162.99,162.98,43.66]
[1754219591207,26.0,162.99,162.98,52.04752329]
[1754219591408,26.0,163.0,162.98,52.04752329]
[1754219591936,26.0,163.0,162.99,8.38752329]
[1754219592311,24.87462959,163.03,162.99,8.38752329]
[1754219592538,0.68,163.01,163.0,43.66]
[1754219593716,0.68,163.01,162.96,8.38752329]
[1754219593940,0.68,163.01,162.97,43.7]
[1754219594108,0.68,163.01,162.98,43.7]
[1754219594310,0.68,163.01,162.95,8.38752329]
[1754219594311,35.24565397,163.0,162.99,43.7]
[1754219594511,40.05998047,163.0,162.99,43.7]
[1754219596133,23.2752965,163.0,162.95,9.09752329]
[1754219596337,4.8143265,162.99,162.96,43.68]
[1754219596506,4.8143265,162.99,162.97,43.68]
[1754219596712,0.68,162.98,162.97,43.68]
[1754219597554,4.1343265,162.99,162.97,43.68]
[1754219597743,4.1343265,162.99,162.98,0.71]
[1754219598250,4.1343265,162.99,162.97,43.68]
[1754219598451,4.8143265,163.02,162.97,44.39]
[1754219598750,19.14097,163.01,162.97,44.39]
[1754219598938,4.1343265,163.0,162.97,44.39]
[1754219599324,4.8143265,163.0,162.97,44.39]
[1754219599721,4.8143265,163.0,162.97,43.68]
[1754219600138,4.8143265,163.0,162.96,0.71]
[1754219600352,4.8143265,163.0,162.97,43.66]
[1754219600728,4.8143265,163.0,162.97,44.37]
[1754219601135,4.1343265,163.0,162.97,44.37]
[1754219601648,0.68,163.01,162.98,0.71]
[1754219602533,0.68,163.01,162.97,43.66]
[1754219602534,0.68,163.01,162.97,44.37]
[1754219602735,0.68,163.01,162.97,43.66]
[1754219603122,4.1343265,163.02,162.97,43.66]
[1754219603324,0.68,163.01,162.98,43.64]
[1754219603557,0.68,163.01,162.98,44.35]
[1754219604045,0.68,163.01,162.98,0.71]
[1754219604364,0.68,163.01,162.95,9.09752329]
[1754219604568,0.68,163.01,162.96,43.68]
[1754219604858,0.68,163.01,162.96,44.39]
[1754219605259,16.78468397,163.01,162.96,44.39]
[1754219605499,4.8143265,163.0,162.97,0.71]
[1754219605639,0.68,163.0,162.97,0.71]
[1754219605974,16.78468397,163.01,162.98,0.71]
[1754219606135,4.1343265,163.0,162.98,0.71]
[1754219606462,16.78468397,163.02,162.99,0.71]
[1754219606767,4.13149456,163.01,163.0,43.66]
[1754219607646,4.13149456,163.01,163.0,44.37]
[1754219607822,4.81149456,163.05,163.0,44.37]
[1754219608038,0.68,163.05,163.01,0.71]
[1754219608241,0.68,163.04,163.01,0.71]
[1754219608634,0.68,163.05,163.01,0.71]
[1754219608827,4.81149456,163.05,163.01,0.71]
[1754219609399,0.68,163.05,163.01,0.71]
[1754219610648,4.81149456,163.05,163.01,0.71]
[1754219611164,18.456427,163.06,163.02,0.71]
[1754219611369,4.13149456,163.05,163.02,0.71]
[1754219611554,0.03,163.05,163.03,0.71]
[1754219611874,0.03,163.05,163.04,44.35]
[1754219612654,0.03,163.05,163.04,52.73752329]
[1754219612861,0.03,163.05,163.04,8.38752329]
[1754219613055,0.03,163.05,163.04,52.75752329]
[1754219614744,0.03,163.05,163.04,9.09752329]
[1754219614945,0.03,163.05,163.04,52.73752329]
[1754219615365,0.03,163.05,163.04,52.02752329]
[1754219616066,0.03,163.05,163.04,52.70752329]
[1754219616867,0.03,163.05,163.04,8.38752329]
[1754219617071,0.03,163.05,163.04,52.04752329]
[1754219617262,0.03,163.05,163.04,52.72752329]
[1754219618275,0.03,163.05,163.04,44.34]
[1754219618452,0.03,163.05,163.04,52.72752329]
[1754219619449,0.03,163.05,163.04,44.34]
[1754219619666,0.03,163.05,163.04,52.72752329]
[1754219621465,0.03,163.05,163.04,9.06752329]
[1754219621660,0.03,163.05,163.04,43.68]
[1754219621978,0.03,163.05,163.04,52.74752329]
[1754219623358,0.03,163.05,163.04,44.36]
[1754219623557,0.03,163.05,163.04,52.74752329]
[1754219624388,0.03,163.05,163.04,96.98752329]
[1754219631900,0.03,163.05,163.04,186.08752329]
[1754219632174,0.03,163.05,163.04,204.53146929]
[1754219633700,0.03,163.05,163.04,221.31615326]
[1754219634015,0.03,163.05,163.04,305.24509606]
[1754219634218,0.03,163.05,163.04,305.24509567]
[1754219634822,0.03,163.05,163.04,305.24425788]
[1754219636077,50.0,163.1,163.04,305.24425788]
[1754219636078,50.0,163.1,163.09,25.17220726]
[1754219636317,50.0,163.1,163.09,69.65220726]
[1754219636976,50.0,163.1,163.09,88.08935226]
[1754219641310,50.0,163.1,163.09,70.62466829]
[1754219641619,50.72,163.1,163.09,97.45752329]
[1754219641932,50.0,163.1,163.09,141.25752329]
[1754219643344,50.0,163.1,163.09,141.93752329]
[1754219643524,50.0,163.1,163.09,69.65220726]
[1754219645020,50.0,163.1,163.09,52.18752329]
[1754219645423,50.69,163.1,163.09,52.18752329]
[1754219646527,50.0,163.1,163.09,52.18752329]
[1754219647235,50.0,163.1,163.09,52.90752329]
[1754219647431,50.0,163.1,163.09,69.69220726]
[1754219650137,50.0,163.1,163.09,95.69220726]
[1754219652236,50.0,163.1,163.09,114.12935126]
[1754219652542,5.15375931,163.11,163.1,8.38752329]
[1754219653132,5.15375931,163.11,163.1,91.23752329]
[1754219653338,5.15375931,163.11,163.1,109.67580129]
[1754219654642,5.15375931,163.11,163.1,88.11048526]
[1754219655146,5.15375931,163.11,163.1,87.39048526]
[1754219655734,5.15375931,163.11,163.1,88.11048526]
[1754219659257,5.15375931,163.11,163.1,87.39048526]
[1754219659548,5.84375931,163.11,163.1,26.82580129]
[1754219659848,5.84375931,163.11,163.1,70.76580129]
[1754219660260,5.84375931,163.11,163.1,114.98580129]
[1754219660649,5.15375931,163.11,163.1,114.98580129]
[1754219661052,5.15375931,163.11,163.1,115.70580129]
[1754219661649,5.15375931,163.11,163.1,132.49048526]
[1754219662226,5.15375931,163.11,163.1,87.83048526]
[1754219662431,5.15375931,163.11,163.1,131.73048526]
[1754219662631,5.15375931,163.11,163.1,132.45048526]
[1754219664241,5.15375931,163.11,163.1,171.52048526]
[1754219666641,5.15375931,163.11,163.1,110.11580129]
[1754219667058,5.84375931,163.11,163.1,153.97580129]
[1754219667254,5.15375931,163.11,163.1,153.97580129]
[1754219668070,5.15375931,163.11,163.1,154.69580129]
[1754219669657,5.15375931,163.11,163.1,171.48048526]
[1754219674852,5.15375931,163.11,163.1,126.90048526]
[1754219675160,5.15375931,163.11,163.1,170.68048526]
[1754219676066,5.15375931,163.11,163.1,171.38048526]
[1754219677580,0.72,163.17,163.16,8.38752329]
[1754219677751,0.72,163.17,163.16,86.09376398]
[1754219678369,0.72,163.17,163.16,104.52524398]
[1754219678551,0.72,163.17,163.16,60.70524398]
[1754219678755,0.72,163.17,163.16,104.52524398]
[1754219679479,0.72,163.17,163.16,148.72524398]
[1754219680472,0.72,163.17,163.16,104.90524398]
[1754219680681,0.72,163.17,163.16,86.47376398]
[1754219680985,0.72,163.17,163.16,130.29376398]
[1754219681757,0.72,163.17,163.16,96.40752329]
[1754219682691,0.72,163.17,163.16,44.2]
[1754219682904,0.72,163.17,163.16,96.38752329]
[1754219685771,0.72,163.17,163.16,44.2]
[1754219686086,0.72,163.17,163.16,96.36752329]
[1754219686981,0.72,163.17,163.16,52.58752329]
[1754219687173,0.72,163.17,163.16,96.36752329]
[1754219689291,26.0,163.23,163.19,8.38752329]
[1754219689595,16.78468397,163.28,163.2,43.86]
[1754219689596,26.0,163.25,163.2,43.86]
[1754219689772,30.13148345,163.24,163.2,43.86]
[1754219689979,4.85148345,163.23,163.2,52.24752329]
[1754219690184,0.72,163.22,163.2,52.24752329]
[1754219691073,0.72,163.22,163.2,43.86]
[1754219691293,0.72,163.22,163.2,52.24752329]
[1754219691876,0.72,163.22,163.2,43.86]
[1754219692084,0.72,163.22,163.2,52.24752329]
[1754219692788,26.0,163.25,163.21,2.95448535]
[1754219692991,26.0,163.26,163.22,43.82]
[1754219693188,4.13177911,163.25,163.22,43.82]
[1754219693391,0.72,163.24,163.22,43.82]
[1754219696973,26.0,163.26,163.22,43.82]
[1754219696974,0.72,163.23,163.22,43.82]
[1754219697673,0.72,163.23,163.22,46.77448535]
[1754219700115,0.72,163.23,163.22,43.82]
[1754219700287,0.72,163.23,163.22,46.77448535]
[1754219700495,0.72,163.23,163.22,47.01448535]
[1754219701090,0.72,163.23,163.22,44.06]
[1754219701392,0.72,163.23,163.22,41.75082715]
[1754219701908,26.72,163.23,163.22,41.75082715]
[1754219702224,0.72,163.23,163.22,41.75082715]
[1754219702516,26.72,163.23,163.17,2.95448535]
[1754219702715,26.0,163.19,163.16,44.2]
[1754219702871,26.0,163.19,163.18,39.91]
[1754219703072,57.81183943,163.19,163.18,39.91]
[1754219703879,49.83019862,163.14,163.13,0.06]
[1754219704083,60.37622213,163.14,163.13,0.06]
[1754219704287,64.14912636,163.14,163.13,44.22]
[1754219705082,106.27019663,163.14,163.13,0.06]
[1754219705280,106.27019663,163.14,163.1,0.06]
[1754219705281,23.83019862,163.11,163.1,0.06]
[1754219705489,81.27370687,163.11,163.1,44.24]
[1754219705792,23.83019862,163.09,163.08,44.24]
[1754219706106,34.37622213,163.09,163.08,44.24]
[1754219707398,23.83019862,163.04,163.02,0.06]
[1754219707712,27.93371111,163.04,163.02,44.4]
[1754219708293,34.3473707,163.04,163.02,44.4]
[1754219708491,23.83019862,163.03,163.02,44.4]
[1754219708695,34.3473707,163.03,163.02,44.4]
[1754219708908,34.3473707,163.03,163.02,0.06]
[1754219709111,23.83019862,162.98,162.97,0.06]
[1754219709291,23.83019862,162.98,162.97,44.42]
[1754219709490,30.24385821,162.98,162.97,44.42]
[1754219709680,33.32863644,162.98,162.97,44.42]
[1754219710625,37.43191006,162.98,162.97,44.42]
[1754219711196,33.32863644,162.98,162.97,0.06]
[1754219712279,33.32863644,162.98,162.92,44.38]
[1754219712280,43.78535438,162.98,162.92,44.38]
[1754219712480,23.83019862,162.93,162.92,44.38]
[1754219713284,35.26157297,162.93,162.92,44.38]
[1754219713490,42.30708762,162.93,162.92,44.38]
[1754219714014,35.26157297,162.93,162.92,44.38]
[1754219714191,18.476889,162.93,162.92,45.07]
[1754219714395,18.476889,162.93,162.92,44.38]
[1754219717091,44.476889,162.93,162.92,45.07]
[1754219718015,18.476889,162.93,162.92,45.07]
[1754219718216,17.756889,162.93,162.92,45.07]
[1754219718416,7.04551465,163.01,162.92,45.07]
[1754219718603,7.04551465,162.97,162.93,44.48]
[1754219718923,26.0,162.94,162.93,45.17]
[1754219721391,44.470063,162.94,162.93,45.17]
[1754219721594,51.51557765,162.94,162.93,44.46]
[1754219722525,44.470063,162.94,162.93,44.46]
[1754219722694,45.170063,162.94,162.9,0.69]
[1754219722894,45.170063,162.94,162.91,44.46]
[1754219723416,7.04551465,162.93,162.91,44.46]
[1754219723601,18.473475,162.93,162.92,0.69]
[1754219723801,18.473475,162.93,162.91,44.46]
[1754219724009,18.473475,162.93,162.91,45.15]
[1754219724404,18.473475,162.93,162.91,44.46]
[1754219724802,18.473475,162.93,162.91,45.15]
[1754219725302,18.473475,162.93,162.91,44.46]
[1754219725499,18.473475,162.93,162.92,0.69]
[1754219725805,26.0,162.94,162.92,0.69]
[1754219726010,44.4712,162.94,162.92,0.69]
[1754219726320,3.2051719,162.95,162.93,0.69]
[1754219726824,3.2051719,162.95,162.91,47.41448535]
[1754219727126,0.03,162.96,162.94,0.69]
[1754219727343,26.03,162.96,162.94,0.69]
[1754219727839,26.0,162.95,162.94,0.69]
[1754219728326,0.03,162.96,162.94,3.64448535]
[1754219728730,0.03,162.96,162.95,0.69]
[1754219728944,21.66575603,163.03,162.95,3.64448535]
[1754219729103,0.7,163.06,162.96,45.13]
[1754219729104,26.0,163.0,162.96,45.13]
[1754219729301,26.0,163.0,162.97,0.69]
[1754219729600,18.46097,163.04,162.97,0.69]
[1754219729801,3.20369295,163.05,162.98,2.95448535]
[1754219730045,6.41365959,163.09,162.99,3.64448535]
[1754219730251,0.7,163.1,163.01,2.95448535]
[1754219730252,18.457563,163.07,163.01,2.95448535]
[1754219730547,29.20262883,163.09,163.02,45.21]
[1754219730719,47.65792083,163.09,163.02,44.52]
[1754219730914,21.65792083,163.09,163.03,0.69]
[1754219731311,26.0,163.07,163.03,0.69]
[1754219731528,21.65792083,163.09,163.03,0.69]
[1754219731720,26.0,163.07,163.03,0.69]
[1754219732020,26.0,163.07,163.02,44.52]
[1754219732021,26.0,163.07,163.04,0.69]
[1754219732195,26.0,163.07,163.02,44.52]
[1754219732398,26.0,163.07,163.05,0.69]
[1754219733613,26.0,163.07,163.06,0.69]
[1754219735441,26.67,163.07,163.06,44.46]
[1754219736328,26.0,163.03,163.0,44.28]
[1754219736503,26.0,163.03,163.01,44.44]
[1754219736705,26.0,163.03,163.01,45.1]
[1754219737016,26.0,163.03,163.0,44.28]
[1754219737228,26.0,163.03,163.02,44.44]
[1754219738915,26.67,163.03,163.02,44.44]
[1754219739444,26.0,163.03,163.02,44.44]
[1754219740029,7.04551465,163.06,163.02,44.44]
[1754219740215,26.0,163.03,163.02,44.44]
[1754219740422,26.67,163.03,163.02,44.44]
[1754219740831,43.45468397,163.03,163.02,44.44]
[1754219741138,43.45468397,163.03,163.02,44.4]
[1754219741338,7.04551465,163.05,163.02,44.4]
[1754219741527,26.0,163.03,163.02,44.4]
[1754219742248,26.0,163.03,163.02,45.06]
[1754219743234,18.454157,163.06,163.02,45.06]
[1754219743441,26.0,163.03,163.02,44.4]
[1754219744017,26.0,163.03,163.02,45.06]
[1754219746230,18.454157,163.06,163.02,45.06]
[1754219746546,26.0,163.06,163.03,3.61448535]
[1754219746755,26.0,163.06,163.04,0.66]
[1754219746929,26.0,163.06,163.05,45.04]
[1754219747325,35.26997597,163.09,163.05,45.04]
[1754219747544,26.0,163.06,163.05,45.04]
[1754219748542,35.26997597,163.09,163.05,45.04]
[1754219748543,0.03,163.09,163.05,47.99448535]
[1754219748720,26.03,163.09,163.06,0.66]
[1754219748927,0.03,163.07,163.06,0.66]